[Event "RUS-ch Men Blitz 2019"]
[Site "Sochi"]
[Date "2019.10.17"]
[Round "13.22"]
[White "Remizov, Yaroslav"]
[Black "Tekeyev, Zaur"]
[Result "0-1"]
[ECO "B32"]
[WhiteElo "2394"]
[BlackElo "2384"]
[Annotator "NA"]
[PlyCount "61"]
[EventDate "2019.10.17"]
[EventType "swiss"]
[EventCountry "RUS"]
[SourceTitle "playchess.com"]
[Source "ChessBase"]
[SourceQuality "1"]
[TimeControl "180+2"]

1. e4 {[%emt 0:00:00]} c5 {[%emt 0:00:00]} 2. Nf3 {[%emt 0:00:00]} Nc6 {[%emt 0:00:00]} 3. d4 {[%emt 0:00:01]} cxd4 {[%emt 0:00:00]} 4. Nxd4 {[%emt 0:00:01]} e5 {[%emt 0:00:01]} 5. Nb5 {[%emt 0:00:02]} d6 {[%emt 0:00:01]} 6. N1c3 {[%emt 0:00:02]} a6 {[%emt 0:00:01]} 7. Na3 {[%emt 0:00:02]} Be7 {[%emt 0:00:01]} 8. Nc4 {[%emt 0:00:01]} b5 {[%emt 0:00:01]} 9. Ne3 {[%emt 0:00:02]} Nf6 {[%emt 0:00:00]} 10. Bd3 {[%emt 0:00:10]} O-O {[%emt 0:00:02]} 11. O-O {[%emt 0:00:02]} Rb8 {[%emt 0:00:01]} 12. a4 {[%emt 0:00:05]} Nb4 {[%emt 0:00:03]} 13. axb5 {[%emt 0:00:40]} axb5 {[%emt 0:00:04]} 14. Nxb5 {[%emt 0:00:19]} Nxd3 {[%emt 0:00:29]} 15. Qxd3 {[%emt 0:00:02]} Nxe4 {[%emt 0:00:05]} 16. Qxe4 {[%emt 0:00:30]} Rxb5 {[%emt 0:00:02]} 17. c4 {[%emt 0:00:06]} Bb7 {[%emt 0:00:30]} 18. Qg4 {[%emt 0:00:08]} Bc8 {[%emt 0:00:27]} 19. Nf5 {[%emt 0:00:28]} Bxf5 {[%emt 0:00:07]} 20. Qxf5 {[%emt 0:00:01]} Rb4 {[%emt 0:00:04]} 21. Qc2 {[%emt 0:00:04]} Qc7 {[%emt 0:00:04]} 22. Ra4 {[%emt 0:00:42]} Rfb8 {[%emt 0:00:01]} 23. h3 {[%emt 0:00:11]} d5 {[%emt 0:00:07]} 24. Rxb4 {[%emt 0:00:05]} Rxb4 {[%emt 0:00:01]} 25. Qf5 {[%emt 0:00:02]} Rxc4 {[%emt 0:00:05]} 26. Be3 {[%emt 0:00:02]} d4 {[%emt 0:00:14]} 27. Bd2 {[%emt 0:00:01]} Bd6 {[%emt 0:00:11]} 28. Rb1 {[%emt 0:00:04]} Rc2 {[%emt 0:00:07]} 29. Ba5 {[%emt 0:00:00]} Qc8 {[%emt 0:00:01]} 30. Qe4 {[%emt 0:00:03]} g6 {[%emt 0:00:31]} 31. Kh2 {[%emt 0:00:06]} 0-1

[Event "RUS-ch Men Blitz 2019"]
[Site "Sochi"]
[Date "2019.10.17"]
[Round "13.23"]
[White "Goltsev, Dmitry"]
[Black "Gubsky, Egor"]
[Result "1-0"]
[ECO "B49"]
[WhiteElo "2309"]
[BlackElo "2339"]
[Annotator "NA"]
[PlyCount "71"]
[EventDate "2019.10.17"]
[EventType "swiss"]
[EventCountry "RUS"]
[SourceTitle "playchess.com"]
[Source "ChessBase"]
[SourceQuality "1"]
[TimeControl "180+2"]

1. e4 {[%emt 0:00:00]} c5 {[%emt 0:00:00]} 2. Nf3 {[%emt 0:00:00]} Nc6 {[%emt 0:00:00]} 3. d4 {[%emt 0:00:00]} cxd4 {[%emt 0:00:01]} 4. Nxd4 {[%emt 0:00:01]} e6 {[%emt 0:00:00]} 5. Nc3 {[%emt 0:00:04]} Qc7 {[%emt 0:00:01]} 6. Be2 {[%emt 0:00:01]} a6 {[%emt 0:00:01]} 7. Be3 {[%emt 0:00:01]} Nf6 {[%emt 0:00:01]} 8. O-O {[%emt 0:00:01]} b5 {[%emt 0:00:07]} 9. a3 {[%emt 0:00:03]} Bb7 {[%emt 0:00:01]} 10. f3 {[%emt 0:00:06]} Be7 {[%emt 0:00:01]} 11. Qd2 {[%emt 0:00:03]} Rd8 {[%emt 0:00:03]} 12. Rfd1 {[%emt 0:00:06]} O-O {[%emt 0:00:04]} 13. Bf1 {[%emt 0:00:01]} d5 {[%emt 0:00:01]} 14. exd5 {[%emt 0:00:02]} Nxd5 {[%emt 0:00:01]} 15. Nxd5 {[%emt 0:00:02]} Rxd5 {[%emt 0:00:01]} 16. Qf2 {[%emt 0:00:07]} Rfd8 {[%emt 0:00:03]} 17. c3 {[%emt 0:01:34]} e5 {[%emt 0:00:05]} 18. Nxb5 {[%emt 0:00:14]} axb5 {[%emt 0:00:04]} 19. Bb6 {[%emt 0:00:01]} Qxb6 {[%emt 0:00:38]} 20. Qxb6 {[%emt 0:00:02]} Bc5+ {[%emt 0:00:01]} 21. Qxc5 {[%emt 0:00:01]} Rxc5 {[%emt 0:00:01]} 22. Rxd8+ {[%emt 0:00:02]} Nxd8 {[%emt 0:00:01]} 23. Rd1 {[%emt 0:00:01]} Ne6 {[%emt 0:00:15]} 24. Rd7 {[%emt 0:00:01]} Rc7 {[%emt 0:00:03]} 25. Bxb5 {[%emt 0:00:07]} Rxd7 {[%emt 0:00:07]} 26. Bxd7 {[%emt 0:00:01]} Nc5 {[%emt 0:00:01]} 27. Bb5 {[%emt 0:00:02]} f5 {[%emt 0:00:21]} 28. b4 {[%emt 0:00:02]} Ba6 {[%emt 0:00:25]} 29. a4 {[%emt 0:00:44]} Bxb5 {[%emt 0:00:06]} 30. axb5 {[%emt 0:00:01]} Nb7 {[%emt 0:00:11]} 31. c4 {[%emt 0:00:01]} Nd6 {[%emt 0:00:01]} 32. b6 {[%emt 0:00:02]} Nb7 {[%emt 0:00:29]} 33. c5 {[%emt 0:00:01]} Nd8 {[%emt 0:00:01]} 34. b5 {[%emt 0:00:02]} Kf7 {[%emt 0:00:05]} 35. c6 {[%emt 0:00:01]} Ke7 {[%emt 0:00:01]} 36. b7 {[%emt 0:00:01]} 1-0

[Event "RUS-ch Men Blitz 2019"]
[Site "Sochi"]
[Date "2019.10.17"]
[Round "13.24"]
[White "Rozum, Ivan"]
[Black "Zakaryan, David"]
[Result "0-1"]
[ECO "A05"]
[WhiteElo "2599"]
[BlackElo "2338"]
[Annotator "ChessBase"]
[PlyCount "68"]
[EventDate "2019.10.17"]
[EventType "swiss"]
[EventCountry "RUS"]
[SourceTitle "playchess.com"]
[Source "ChessBase"]
[SourceQuality "1"]
[TimeControl "180+2"]

1. Nf3 {[%emt 0:00:00]} Nf6 {[%emt 0:00:01]} 2. g3 {[%emt 0:00:00]} g6 {[%emt 0:00:01]} 3. b3 {[%emt 0:00:01]} Bg7 {[%emt 0:00:01]} 4. Bb2 {[%emt 0:00:00]} O-O {[%emt 0:00:01]} 5. Bg2 {[%emt 0:00:01]} c5 {[%emt 0:00:01]} 6. c4 {[%emt 0:00:02]} d5 {[%emt 0:00:01]} 7. cxd5 {[%emt 0:00:01]} Nxd5 {[%emt 0:00:10]} 8. Bxg7 {[%emt 0:00:02]} Kxg7 {[%emt 0:00:01]} 9. d4 {[%emt 0:00:01]} Qa5+ {[%emt 0:00:04]} 10. Qd2 {[%emt 0:00:01]} Qxd2+ {[%emt 0:00:05]} 11. Nbxd2 {[%emt 0:00:02]} Na6 {[%emt 0:00:08]} 12. O-O {[%emt 0:00:04]} Rd8 {[%emt 0:00:07]} 13. Rfc1 {[%emt 0:00:19]} cxd4 {[%emt 0:00:05]} 14. Nxd4 {[%emt 0:00:01]} e5 {[%emt 0:00:13]} 15. Nb5 {[%emt 0:00:05]} Be6 {[%emt 0:00:14]} 16. Nc4 {[%emt 0:00:06]} f6 {[%emt 0:00:09]} 17. Na5 {[%emt 0:00:14]} Rd7 {[%emt 0:00:09]} 18. Rd1 {[%emt 0:00:14]} Rad8 {[%emt 0:00:40]} 19. Nxa7 {[%emt 0:00:02]} Nc3 {[%emt 0:00:01]} 20. Rxd7+ {[%emt 0:00:02]} Rxd7 {[%emt 0:00:01]} 21. e3 {[%emt 0:00:16]} b6 {[%emt 0:00:03]} 22. N5c6 {[%emt 0:00:02]} Rd2 {[%emt 0:00:08]} 23. Bf1 {[%emt 0:00:14]} Nc5 {[%emt 0:00:02]} 24. Nb4 {[%emt 0:00:23]} N5e4 {[%emt 0:00:05]} 25. f4 {[%emt 0:00:01]} Nd1 {[%emt 0:00:12]} 26. fxe5 {[%emt 0:00:12]} fxe5 {[%emt 0:00:06]} 27. Bg2 {[%emt 0:00:22]} Ng5 {[%emt 0:00:07]} 28. Nc2 {[%emt 0:00:42]} Bh3 {[%emt 0:00:14]} 29. Bxh3 {[%emt 0:00:11]} Nxh3+ {[%emt 0:00:02]} 30. Kf1 {[%emt 0:00:00]} Nc3 {[%emt 0:00:07]} 31. Nb4 {[%emt 0:00:10]} Rxh2 {[%emt 0:00:05]} 32. Ke1 {[%emt 0:00:07]} Rh1+ {[%emt 0:00:15]} 33. Kd2 {[%emt 0:00:01]} Ne4+ {[%emt 0:00:01]} 34. Kd3 {[%emt 0:00:01]} Nhf2+ {[%emt 0:00:01] Kd4} 0-1

[Event "RUS-ch Men Blitz 2019"]
[Site "Sochi"]
[Date "2019.10.17"]
[Round "13.25"]
[White "Belozerov, Andrei"]
[Black "Musalov, Ruslan"]
[Result "1-0"]
[ECO "C67"]
[WhiteElo "2515"]
[BlackElo "2348"]
[Annotator "ChessBase"]
[PlyCount "83"]
[EventDate "2019.10.17"]
[EventType "swiss"]
[EventCountry "RUS"]
[SourceTitle "playchess.com"]
[Source "ChessBase"]
[SourceQuality "1"]
[TimeControl "180+2"]

1. e4 {[%emt 0:00:00]} e5 {[%emt 0:00:00]} 2. Nf3 {[%emt 0:00:01]} Nc6 {[%emt 0:00:00]} 3. Bb5 {[%emt 0:00:01]} Nf6 {[%emt 0:00:01]} 4. O-O {[%emt 0:00:02]} Nxe4 {[%emt 0:00:01]} 5. d4 {[%emt 0:00:02]} Nd6 {[%emt 0:00:01]} 6. Bg5 {[%emt 0:00:10]} Be7 {[%emt 0:00:16]} 7. Bxe7 {[%emt 0:00:02]} Qxe7 {[%emt 0:00:22]} 8. Bxc6 {[%emt 0:00:01]} dxc6 {[%emt 0:00:02]} 9. dxe5 {[%emt 0:00:02]} Nf5 {[%emt 0:00:02]} 10. Qd3 {[%emt 0:00:03]} Be6 {[%emt 0:00:17]} 11. Nc3 {[%emt 0:00:01]} O-O {[%emt 0:00:09]} 12. Qe4 {[%emt 0:00:02]} Rad8 {[%emt 0:00:16]} 13. Rad1 {[%emt 0:00:02]} Qc5 {[%emt 0:00:01]} 14. a3 {[%emt 0:00:43]} h6 {[%emt 0:00:08]} 15. Qb4 {[%emt 0:00:18]} Qxb4 {[%emt 0:00:48]} 16. axb4 {[%emt 0:00:01]} Ne7 {[%emt 0:00:10]} 17. Nd4 {[%emt 0:00:11]} Nd5 {[%emt 0:00:02]} 18. Ne4 {[%emt 0:00:45]} Nxb4 {[%emt 0:00:39]} 19. Nxe6 {[%emt 0:00:01]} fxe6 {[%emt 0:00:04]} 20. Nc5 {[%emt 0:00:00]} Nxc2 {[%emt 0:00:12]} 21. Nxb7 {[%emt 0:00:06]} Rxd1 {[%emt 0:00:04]} 22. Rxd1 {[%emt 0:00:01]} Rb8 {[%emt 0:00:01]} 23. Nc5 {[%emt 0:00:05]} Kf7 {[%emt 0:00:04]} 24. Rd7+ {[%emt 0:00:03]} Ke8 {[%emt 0:00:04]} 25. Rxc7 {[%emt 0:00:10]} Rb5 {[%emt 0:00:01]} 26. Rxc6 {[%emt 0:00:18]} Nd4 {[%emt 0:00:01]} 27. Rc8+ {[%emt 0:00:01]} Ke7 {[%emt 0:00:01]} 28. f4 {[%emt 0:00:16]} Rxb2 {[%emt 0:00:02]} 29. Rc7+ {[%emt 0:00:04]} Ke8 {[%emt 0:00:02]} 30. Rxa7 {[%emt 0:00:04]} Ne2+ {[%emt 0:00:01]} 31. Kf2 {[%emt 0:00:05]} Nxf4+ {[%emt 0:00:02]} 32. Kf3 {[%emt 0:00:03]} Nxg2 {[%emt 0:00:03]} 33. Rxg7 {[%emt 0:00:04]} Nh4+ {[%emt 0:00:03]} 34. Ke4 {[%emt 0:00:03]} Nf5 {[%emt 0:00:04]} 35. Rg6 {[%emt 0:00:05]} Rb4+ {[%emt 0:00:01]} 36. Kd3 {[%emt 0:00:01]} Kf7 {[%emt 0:00:02]} 37. Rf6+ {[%emt 0:00:01]} Kg7 {[%emt 0:00:02]} 38. Nxe6+ {[%emt 0:00:02]} Kg8 {[%emt 0:00:02]} 39. Rxf5 {[%emt 0:00:01]} Rh4 {[%emt 0:00:01]} 40. Rf2 {[%emt 0:00:04]} Kh7 {[%emt 0:00:01]} 41. Nf4 {[%emt 0:00:02]} Rg4 {[%emt 0:00:04]} 42. Ke4 {[%emt 0:00:01]} 1-0

[Event "RUS-ch Men Blitz 2019"]
[Site "Sochi"]
[Date "2019.10.17"]
[Round "13.26"]
[White "Gogolev, Artem"]
[Black "Bryakin, Mikhail"]
[Result "1-0"]
[ECO "A40"]
[WhiteElo "2339"]
[BlackElo "2440"]
[Annotator "NA"]
[PlyCount "71"]
[EventDate "2019.10.17"]
[EventType "swiss"]
[EventCountry "RUS"]
[SourceTitle "playchess.com"]
[Source "ChessBase"]
[SourceQuality "1"]
[TimeControl "180+2"]

1. d4 {[%emt 0:00:00]} g6 {[%emt 0:00:00]} 2. c4 {[%emt 0:00:01]} Bg7 {[%emt 0:00:00]} 3. Nf3 {[%emt 0:00:03]} d6 {[%emt 0:00:00]} 4. g3 {[%emt 0:00:04]} e6 {[%emt 0:00:00]} 5. Bg2 {[%emt 0:00:01]} Ne7 {[%emt 0:00:01]} 6. O-O {[%emt 0:00:02]} h6 {[%emt 0:00:00]} 7. Nc3 {[%emt 0:00:08]} b6 {[%emt 0:00:01]} 8. Ne1 {[%emt 0:00:10]} c6 {[%emt 0:00:00]} 9. e4 {[%emt 0:00:02]} Bb7 {[%emt 0:00:01]} 10. Be3 {[%emt 0:00:06]} Nd7 {[%emt 0:00:00]} 11. Nd3 a6 12. d5 {[%emt 0:00:25]} Nc5 {[%emt 0:00:30]} 13. Nxc5 {[%emt 0:00:11]} bxc5 {[%emt 0:00:01]} 14. dxe6 {[%emt 0:00:03]} fxe6 {[%emt 0:00:00]} 15. Qd2 {[%emt 0:00:01]} Qc7 {[%emt 0:00:17]} 16. Rad1 {[%emt 0:00:06]} Rd8 {[%emt 0:00:01]} 17. Bh3 {[%emt 0:00:07]} Bc8 {[%emt 0:00:03]} 18. a3 {[%emt 0:00:06]} e5 {[%emt 0:00:04]} 19. Bxc8 {[%emt 0:00:05]} Qxc8 {[%emt 0:00:01]} 20. b4 {[%emt 0:00:02]} cxb4 {[%emt 0:00:01]} 21. axb4 {[%emt 0:00:01]} Qe6 {[%emt 0:00:06]} 22. Qd3 {[%emt 0:00:19]} O-O {[%emt 0:00:04]} 23. Ra1 {[%emt 0:00:01]} Qh3 {[%emt 0:00:33]} 24. Rxa6 {[%emt 0:00:10]} g5 {[%emt 0:00:01]} 25. b5 {[%emt 0:00:08]} cxb5 {[%emt 0:00:01]} 26. Rxd6 {[%emt 0:00:09]} bxc4 {[%emt 0:00:12]} 27. Qxc4+ {[%emt 0:00:03]} Kh7 {[%emt 0:00:00]} 28. Rxd8 {[%emt 0:00:09]} Rxd8 {[%emt 0:00:00]} 29. Rd1 {[%emt 0:00:08]} Rc8 {[%emt 0:00:08]} 30. Qf7 {[%emt 0:00:09]} Rc7 {[%emt 0:00:18]} 31. Nb5 {[%emt 0:00:10]} Rd7 {[%emt 0:00:11]} 32. Rxd7 Qxd7 {[%emt 0:00:01]} 33. Nc3 {[%emt 0:00:13]} Qd6 {[%emt 0:00:24]} 34. Nd5 {[%emt 0:00:06]} Ng8 {[%emt 0:00:05]} 35. Kg2 {[%emt 0:00:17]} Qc6 {[%emt 0:00:01]} 36. Qxg8+ {[%emt 0:00:03]} 1-0

[Event "RUS-ch Men Blitz 2019"]
[Site "Sochi"]
[Date "2019.10.17"]
[Round "13.27"]
[White "Sadovsky, Artem"]
[Black "Shcherbin, Matvei"]
[Result "1/2-1/2"]
[ECO "A14"]
[WhiteElo "2411"]
[BlackElo "2366"]
[Annotator "NA"]
[PlyCount "98"]
[EventDate "2019.10.17"]
[EventType "swiss"]
[EventCountry "RUS"]
[SourceTitle "playchess.com"]
[Source "ChessBase"]
[SourceQuality "1"]
[TimeControl "180+2"]

1. c4 {[%emt 0:00:00]} Nf6 {[%emt 0:00:00]} 2. g3 {[%emt 0:00:00]} e6 {[%emt 0:00:06]} 3. Bg2 {[%emt 0:00:01]} d5 {[%emt 0:00:01]} 4. Nf3 {[%emt 0:00:02]} Be7 {[%emt 0:00:02]} 5. O-O {[%emt 0:00:01]} O-O {[%emt 0:00:02]} 6. b3 {[%emt 0:00:01]} b6 {[%emt 0:00:08]} 7. Bb2 {[%emt 0:00:01]} Bb7 {[%emt 0:00:01]} 8. d3 {[%emt 0:00:01]} Nbd7 {[%emt 0:00:00]} 9. Nbd2 {[%emt 0:00:04]} c5 {[%emt 0:00:02]} 10. Qc2 {[%emt 0:00:04]} Qc7 {[%emt 0:00:06]} 11. Rad1 {[%emt 0:00:07]} Rfd8 {[%emt 0:00:01]} 12. e4 {[%emt 0:00:07]} dxe4 {[%emt 0:00:37]} 13. Nxe4 {[%emt 0:00:01]} Nxe4 {[%emt 0:00:08]} 14. dxe4 {[%emt 0:00:01]} Bf6 {[%emt 0:00:01]} 15. Rfe1 {[%emt 0:00:40]} Ne5 {[%emt 0:00:22]} 16. Nxe5 Bxe5 17. f4 {[%emt 0:00:02]} Bxb2 {[%emt 0:00:03]} 18. Qxb2 {[%emt 0:00:01]} Rxd1 {[%emt 0:00:06]} 19. Rxd1 Rd8 20. Rd2 {[%emt 0:00:19]} Rd7 {[%emt 0:00:09]} 21. Kf2 {[%emt 0:00:11]} Qd8 {[%emt 0:00:03]} 22. Rxd7 {[%emt 0:00:15]} Qxd7 {[%emt 0:00:02]} 23. Ke2 {[%emt 0:00:10]} Kf8 {[%emt 0:00:09]} 24. Qe5 {[%emt 0:00:04]} Qd8 {[%emt 0:00:05]} 25. Bf3 {[%emt 0:00:09]} h6 {[%emt 0:00:04]} 26. h4 {[%emt 0:00:13]} Bc6 {[%emt 0:00:01]} 27. Bh5 {[%emt 0:00:10]} Be8 {[%emt 0:00:16]} 28. Bg4 {[%emt 0:00:06]} Bc6 {[%emt 0:00:29]} 29. a4 {[%emt 0:00:01]} Be8 {[%emt 0:00:01]} 30. a5 {[%emt 0:00:04]} Bc6 {[%emt 0:00:07]} 31. a6 {[%emt 0:00:07]} Kg8 {[%emt 0:00:13]} 32. f5 {[%emt 0:00:02]} exf5 {[%emt 0:00:08]} 33. Bxf5 {[%emt 0:00:01]} Kf8 {[%emt 0:00:04]} 34. Bg4 {[%emt 0:00:10]} Qe8 {[%emt 0:00:09]} 35. Qd6+ {[%emt 0:00:12]} Kg8 {[%emt 0:00:01]} 36. e5 {[%emt 0:00:02]} Be4 {[%emt 0:00:12]} 37. Ke3 {[%emt 0:00:09]} Bg2 {[%emt 0:00:04]} 38. Bf3 {[%emt 0:00:08]} Bxf3 {[%emt 0:00:05]} 39. Kxf3 {[%emt 0:00:01]} Qa8+ {[%emt 0:00:01]} 40. Qd5 {[%emt 0:00:01]} Qc8 {[%emt 0:00:02]} 41. e6 {[%emt 0:00:14]} Qxe6 {[%emt 0:00:07]} 42. Qa8+ {[%emt 0:00:03]} Kh7 {[%emt 0:00:01]} 43. Qxa7 {[%emt 0:00:06]} Qf5+ {[%emt 0:00:01]} 44. Ke3 {[%emt 0:00:09]} Qe5+ {[%emt 0:00:00]} 45. Kd2 {[%emt 0:00:02]} Qd4+ {[%emt 0:00:04]} 46. Kc2 {[%emt 0:00:01]} Qf2+ {[%emt 0:00:02]} 47. Kb1 {[%emt 0:00:01]} Qe1+ {[%emt 0:00:01]} 48. Kb2 {[%emt 0:00:04]} Qd2+ {[%emt 0:00:01]} 49. Ka3 {[%emt 0:00:02]} Qa5+ {[%emt 0:00:01]} 1/2-1/2

[Event "RUS-ch Men Blitz 2019"]
[Site "Sochi"]
[Date "2019.10.17"]
[Round "13.28"]
[White "Ulybin, Mikhail"]
[Black "Dashko, Andrey"]
[Result "0-1"]
[ECO "B38"]
[WhiteElo "2455"]
[BlackElo "2219"]
[Annotator "ChessBase"]
[PlyCount "80"]
[EventDate "2019.10.17"]
[EventType "swiss"]
[EventCountry "RUS"]
[SourceTitle "playchess.com"]
[Source "ChessBase"]
[SourceQuality "1"]
[TimeControl "180+2"]

1. e4 {[%emt 0:00:01]} c5 {[%emt 0:00:00]} 2. Nf3 {[%emt 0:00:03]} g6 {[%emt 0:00:01]} 3. c4 {[%emt 0:00:04]} Nc6 {[%emt 0:00:02]} 4. d4 {[%emt 0:00:02]} cxd4 {[%emt 0:00:01]} 5. Nxd4 {[%emt 0:00:03]} Bg7 {[%emt 0:00:01]} 6. Be3 {[%emt 0:00:03]} d6 {[%emt 0:00:00]} 7. Nc3 {[%emt 0:00:03]} Nf6 {[%emt 0:00:01]} 8. Be2 {[%emt 0:00:03]} O-O {[%emt 0:00:03]} 9. O-O {[%emt 0:00:04]} Bd7 {[%emt 0:00:01]} 10. Qd2 {[%emt 0:00:22]} Nxd4 {[%emt 0:00:04]} 11. Bxd4 {[%emt 0:00:02]} Bc6 {[%emt 0:00:00]} 12. f3 {[%emt 0:00:09]} a5 {[%emt 0:00:02]} 13. b3 {[%emt 0:00:07]} Nd7 {[%emt 0:00:01]} 14. Be3 {[%emt 0:00:03]} Nc5 {[%emt 0:00:02]} 15. Rab1 {[%emt 0:00:04]} Qb6 {[%emt 0:00:37]} 16. Rfc1 {[%emt 0:00:07]} Qb4 {[%emt 0:00:14]} 17. Rc2 {[%emt 0:00:42]} Rfc8 {[%emt 0:00:29]} 18. Qc1 {[%emt 0:00:06]} Qb6 {[%emt 0:00:28]} 19. a3 {[%emt 0:00:15]} Qd8 {[%emt 0:00:02]} 20. b4 {[%emt 0:00:06]} axb4 {[%emt 0:00:01]} 21. axb4 {[%emt 0:00:03]} Ne6 {[%emt 0:00:02]} 22. Qd2 {[%emt 0:00:15]} Nc7 {[%emt 0:00:26]} 23. Kh1 {[%emt 0:00:15]} Qe8 {[%emt 0:00:17]} 24. b5 {[%emt 0:00:05]} Bd7 {[%emt 0:00:00]} 25. Bg5 {[%emt 0:00:19]} Ra3 {[%emt 0:00:02]} 26. b6 {[%emt 0:00:12]} Ne6 {[%emt 0:00:03]} 27. Be3 {[%emt 0:00:02]} Bc6 {[%emt 0:00:05]} 28. Nb5 {[%emt 0:00:06]} Bxb5 {[%emt 0:00:03]} 29. Rxb5 {[%emt 0:00:03]} Rca8 {[%emt 0:00:02]} 30. h3 {[%emt 0:00:04]} Qc6 {[%emt 0:00:07]} 31. Kh2 {[%emt 0:00:03]} Be5+ {[%emt 0:00:03]} 32. g3 {[%emt 0:00:02]} h5 {[%emt 0:00:02]} 33. h4 {[%emt 0:00:02]} Bf6 {[%emt 0:00:17]} 34. Bf2 {[%emt 0:00:02]} Nc5 35. Rb1 {[%emt 0:00:03]} Nb3 {[%emt 0:00:05]} 36. Qd1 {[%emt 0:00:03]} Ra1 {[%emt 0:00:03]} 37. Rxa1 {[%emt 0:00:03]} Rxa1 {[%emt 0:00:01]} 38. Qd3 {[%emt 0:00:01]} Nc5 {[%emt 0:00:01]} 39. Qe3 {[%emt 0:00:02]} Qxb6 {[%emt 0:00:02]} 40. Kg2 {[%emt 0:00:02]} Qb1 {[%emt 0:00:01]} 0-1

[Event "RUS-ch Men Blitz 2019"]
[Site "Sochi"]
[Date "2019.10.17"]
[Round "13.29"]
[White "Frolov, Aleksey G."]
[Black "Kovalchuk, Alexey"]
[Result "1-0"]
[ECO "C84"]
[WhiteElo "2093"]
[BlackElo "2388"]
[Annotator "NA"]
[PlyCount "75"]
[EventDate "2019.10.17"]
[EventType "swiss"]
[EventCountry "RUS"]
[SourceTitle "playchess.com"]
[Source "ChessBase"]
[SourceQuality "1"]
[TimeControl "180+2"]

1. e4 {[%emt 0:00:00]} e5 {[%emt 0:00:00]} 2. Nf3 {[%emt 0:00:01]} Nc6 {[%emt 0:00:01]} 3. Bb5 {[%emt 0:00:01]} a6 {[%emt 0:00:01]} 4. Ba4 {[%emt 0:00:01]} Nf6 {[%emt 0:00:02]} 5. O-O {[%emt 0:00:02]} Be7 {[%emt 0:00:02]} 6. d3 {[%emt 0:00:01]} b5 {[%emt 0:00:03]} 7. Bb3 {[%emt 0:00:01]} d6 {[%emt 0:00:01]} 8. a4 {[%emt 0:00:02]} Bd7 {[%emt 0:00:09]} 9. Nc3 {[%emt 0:00:22]} Na5 {[%emt 0:00:38]} 10. Ba2 {[%emt 0:00:04]} b4 {[%emt 0:00:09]} 11. Ne2 {[%emt 0:00:08]} c5 {[%emt 0:00:04]} 12. Bd2 {[%emt 0:00:02]} Nc6 {[%emt 0:00:03]} 13. Ng3 {[%emt 0:00:07]} O-O {[%emt 0:00:03]} 14. h3 {[%emt 0:00:03]} Qc8 {[%emt 0:00:09]} 15. Nh4 {[%emt 0:00:16]} Be6 {[%emt 0:00:42]} 16. Nhf5 {[%emt 0:00:02]} Bxa2 {[%emt 0:00:20]} 17. Rxa2 {[%emt 0:00:01]} Qe6 {[%emt 0:00:03]} 18. Ra1 {[%emt 0:00:06]} Rfe8 {[%emt 0:00:05]} 19. Qf3 {[%emt 0:00:02]} Bf8 {[%emt 0:00:05]} 20. c3 {[%emt 0:00:14]} bxc3 {[%emt 0:00:05]} 21. bxc3 {[%emt 0:00:03]} Rab8 {[%emt 0:00:04]} 22. Rfb1 {[%emt 0:00:04]} g6 {[%emt 0:00:28]} 23. Nh6+ {[%emt 0:00:06]} Kh8 {[%emt 0:00:03]} 24. Bg5 {[%emt 0:00:19]} Bg7 {[%emt 0:00:01]} 25. Kh2 {[%emt 0:00:12]} Ne7 {[%emt 0:00:10]} 26. Nf1 {[%emt 0:00:14]} Neg8 {[%emt 0:00:01]} 27. Nxg8 {[%emt 0:00:03]} Nxg8 {[%emt 0:00:03]} 28. Ne3 {[%emt 0:00:02]} f6 {[%emt 0:00:01]} 29. Bh4 {[%emt 0:00:02]} Ne7 {[%emt 0:00:02]} 30. a5 {[%emt 0:00:14]} Kg8 {[%emt 0:00:03]} 31. Rb6 {[%emt 0:00:02]} Rxb6 {[%emt 0:00:08]} 32. axb6 {[%emt 0:00:01]} Ra8 {[%emt 0:00:01]} 33. Nd5 {[%emt 0:00:16]} Nxd5 {[%emt 0:00:02]} 34. exd5 {[%emt 0:00:01]} Qe7 {[%emt 0:00:01]} 35. Qg4 {[%emt 0:00:07]} Kf7 {[%emt 0:00:03]} 36. Rb1 {[%emt 0:00:05]} h5 {[%emt 0:00:03]} 37. b7 {[%emt 0:00:06]} Rb8 {[%emt 0:00:03]} 38. Qc8 {[%emt 0:00:01]} 1-0

[Event "RUS-ch Men Blitz 2019"]
[Site "Sochi"]
[Date "2019.10.17"]
[Round "13.30"]
[White "Belyakov, Bogdan"]
[Black "Skvortsov, Andrei"]
[Result "1-0"]
[ECO "B22"]
[WhiteElo "2495"]
[BlackElo "2139"]
[Annotator "ChessBase"]
[PlyCount "116"]
[EventDate "2019.10.17"]
[EventType "swiss"]
[EventCountry "RUS"]
[SourceTitle "playchess.com"]
[Source "ChessBase"]
[SourceQuality "1"]
[TimeControl "180+2"]

1. e4 c5 2. c3 {[%emt 0:00:00]} Nf6 {[%emt 0:00:00]} 3. e5 {[%emt 0:00:01]} Nd5 {[%emt 0:00:01]} 4. Bc4 {[%emt 0:00:01]} Nb6 {[%emt 0:00:02]} 5. Bb3 {[%emt 0:00:01]} d5 {[%emt 0:00:02]} 6. exd6 {[%emt 0:00:01]} exd6 {[%emt 0:00:01]} 7. Nf3 {[%emt 0:00:02]} d5 {[%emt 0:00:02]} 8. d4 {[%emt 0:00:02]} cxd4 {[%emt 0:00:06]} 9. Nxd4 {[%emt 0:00:02]} Be7 {[%emt 0:00:01]} 10. O-O {[%emt 0:00:06]} O-O {[%emt 0:00:01]} 11. Bc2 {[%emt 0:00:05]} Bf6 {[%emt 0:00:03]} 12. Bf4 {[%emt 0:00:09]} Nc6 {[%emt 0:00:06]} 13. Nb5 {[%emt 0:00:03]} Ne5 {[%emt 0:00:20]} 14. Bxe5 {[%emt 0:00:05]} Bxe5 {[%emt 0:00:06]} 15. Bxh7+ {[%emt 0:00:03]} Kxh7 {[%emt 0:00:01]} 16. Qh5+ {[%emt 0:00:02]} Kg8 {[%emt 0:00:01]} 17. Qxe5 Re8 18. Qg3 {[%emt 0:00:06]} Re2 {[%emt 0:00:01]} 19. Nc7 {[%emt 0:00:12]} Rb8 {[%emt 0:00:02]} 20. Ne8 {[%emt 0:00:09]} Qxe8 {[%emt 0:00:21]} 21. Qxb8 {[%emt 0:00:02]} Rxb2 {[%emt 0:00:02]} 22. Na3 {[%emt 0:00:11]} Qa4 {[%emt 0:00:06]} 23. Rae1 {[%emt 0:00:47]} Qxa3 {[%emt 0:00:07]} 24. Re8+ Kh7 25. Qe5 {[%emt 0:00:03]} Bg4 {[%emt 0:00:15]} 26. h3 {[%emt 0:00:03]} f6 {[%emt 0:00:02]} 27. Qg3 {[%emt 0:01:00]} Bd7 {[%emt 0:00:28]} 28. Qd3+ {[%emt 0:00:06]} f5 {[%emt 0:00:11]} 29. Re5 {[%emt 0:00:11]} Qd6 {[%emt 0:00:04]} 30. Rfe1 {[%emt 0:00:02]} Qc5 {[%emt 0:00:09]} 31. Qg3 {[%emt 0:00:02]} Qd6 {[%emt 0:00:22]} 32. Qf3 {[%emt 0:00:06]} Rxa2 {[%emt 0:00:13]} 33. Re7 {[%emt 0:00:08]} Qg6 {[%emt 0:00:15]} 34. Qf4 {[%emt 0:00:01]} Qh6 {[%emt 0:00:06]} 35. Qf3 {[%emt 0:00:03]} Ra4 {[%emt 0:00:09]} 36. Rxd7 {[%emt 0:00:01]} Rf4 {[%emt 0:00:02]} 37. Rxg7+ {[%emt 0:00:06]} Kxg7 {[%emt 0:00:01]} 38. Re7+ {[%emt 0:00:02]} Kf8 {[%emt 0:00:09]} 39. Qe3 {[%emt 0:00:01]} Qd6 {[%emt 0:00:03]} 40. Re8+ Kf7 41. Re5 {[%emt 0:00:10]} Nc4 {[%emt 0:00:03]} 42. Qxf4 {[%emt 0:00:02]} Qxe5 {[%emt 0:00:01]} 43. Qh6 {[%emt 0:00:01]} Qxc3 {[%emt 0:00:04]} 44. Qh7+ {[%emt 0:00:01]} Ke6 {[%emt 0:00:02]} 45. Qg6+ {[%emt 0:00:01]} Qf6 {[%emt 0:00:01]} 46. Qe8+ {[%emt 0:00:01]} Kd6 {[%emt 0:00:01]} 47. Qb8+ {[%emt 0:00:01]} Kc6 {[%emt 0:00:00]} 48. Qxa7 {[%emt 0:00:00]} Qe5 {[%emt 0:00:03]} 49. Qa4+ {[%emt 0:00:01]} b5 {[%emt 0:00:01]} 50. Qa6+ {[%emt 0:00:01]} Nb6 {[%emt 0:00:02]} 51. Qa3 {[%emt 0:00:03]} Qe1+ {[%emt 0:00:02]} 52. Kh2 {[%emt 0:00:01]} Qxf2 {[%emt 0:00:01]} 53. Qc3+ {[%emt 0:00:01]} Qc5 {[%emt 0:00:01]} 54. Qg7 {[%emt 0:00:02]} b4 {[%emt 0:00:01]} 55. h4 {[%emt 0:00:01]} Qd6+ {[%emt 0:00:02]} 56. Kh3 {[%emt 0:00:01]} d4 {[%emt 0:00:02]} 57. h5 {[%emt 0:00:01]} d3 {[%emt 0:00:02]} 58. Qg3 {[%emt 0:00:11]} Qxg3+ 1-0